fUSD/lending_fUSD_20250806
["ID","MTS","AMOUNT","RATE_DAILY","PERIOD"]
[377576980,1754445135094,-1928.06,0.00036712,14]
[377576981,1754445135104,-1599.02,0.00036712,14]
[377576982,1754445135114,-849.23,0.00036712,14]
[377576983,1754445135124,-6570.38,0.00036712,14]
[377576984,1754445135133,-478.88,0.00036712,14]
[377576985,1754445135142,-2209.33,0.00036712,14]
[377576986,1754445135152,-2192.19,0.00036712,14]
[377576987,1754445135161,-400.0,0.00036712,14]
[377576988,1754445135171,-922.18,0.00036712,14]
[377576989,1754445135181,-725.39,0.00036712,14]
[377576990,1754445135192,-3526.33,0.00036712,14]
[377576991,1754445135202,-1089.73,0.00036712,14]
[377576992,1754445135213,-400.0,0.00036712,14]
[377576993,1754445135222,-2527.58,0.00036712,14]
[377576994,1754445135232,-1149.59,0.00036712,14]
[377576995,1754445135241,-504.61,0.00036712,14]
[377576996,1754445135250,-757.53,0.00036712,14]
[377576997,1754445135260,-1790.5,0.00036712,14]
[377576998,1754445135270,-1094.22,0.00036712,14]
[377576999,1754445135279,-1766.95,0.00036712,14]
[377577000,1754445135289,-786.41,0.00036712,14]
[377577001,1754445135298,-2054.01,0.00036712,14]
[377577002,1754445135308,-1663.17,0.00036712,14]
[377577003,1754445135317,-580.15,0.00036712,14]
[377577004,1754445135326,-954.12,0.00036712,14]
[377577005,1754445135335,-2095.59,0.00036712,14]
[377577006,1754445135345,-702.26,0.00036712,14]
[377577007,1754445135355,-1000.88,0.00036712,14]
[377577008,1754445135365,-151.0,0.00036712,7]
[377577009,1754445135375,-11921.43,0.00036712,14]
[377577010,1754445135384,-1145.83,0.00036712,14]
[377577011,1754445135394,-446.21,0.00036712,14]
[377577012,1754445135403,-584.03,0.00036712,14]
[377577013,1754445135413,-2361.68,0.00036712,14]
[377577014,1754445135423,-2558.14,0.00036712,14]
[377577015,1754445135433,-727.35,0.00036712,14]
[377577016,1754445135443,-400.0,0.00036712,14]
[377577017,1754445135454,-410.84,0.00036712,14]
[377577018,1754445135464,-400.0,0.00036712,14]
[377577019,1754445135481,-189.95654822,0.00036712,14]
[377577020,1754445135499,-1922.53,0.00036712,14]
[377577021,1754445135509,-400.0,0.00036712,14]
[377577022,1754445135518,-400.0,0.00036712,14]
[377577023,1754445135528,-983.36,0.00036712,14]
[377577024,1754445135538,-823.02,0.00036712,14]
[377577025,1754445135548,-2701.61,0.00036712,14]
[377577026,1754445135558,-1019.92,0.00036712,14]
[377577027,1754445135568,-2514.73,0.00036712,14]
[377577028,1754445135578,-782.82,0.00036712,14]
[377577029,1754445135589,-1251.76,0.00036712,14]
[377577030,1754445135598,-437.92,0.00036712,14]
[377577031,1754445135607,-400.0,0.00036712,14]
[377577032,1754445135617,-2875.37,0.00036712,14]
[377577033,1754445135628,-3185.2,0.00036712,14]
[377577034,1754445135639,-2546.61,0.00036712,14]
[377577035,1754445135650,-2798.78,0.00036712,14]
[377577036,1754445135659,-400.0,0.00036712,14]
[377577037,1754445135669,-1537.42,0.00036712,14]
[377577038,1754445135679,-2866.67,0.00036712,14]
[377577039,1754445135691,-400.0,0.00036712,14]
[377577040,1754445135710,-400.0,0.00036712,14]
[377577041,1754445135719,-400.0,0.00036712,14]
[377577042,1754445135728,-2529.46,0.00036712,14]
[377577043,1754445135738,-2815.7,0.00036712,14]
[377577044,1754445135748,-1013.74,0.00036712,14]
[377577045,1754445135758,-1627.3,0.00036712,14]
[377577046,1754445135768,-400.0,0.00036712,14]
[377577047,1754445135777,-2945.98,0.00036712,14]
[377577048,1754445135787,-496.21,0.00036712,14]
[377577049,1754445135796,-610.57,0.00036712,14]
[377577050,1754445135806,-1967.92,0.00036712,14]
[377577051,1754445135817,-547.97,0.00036712,14]
[377577052,1754445135827,-1751.29,0.00036712,14]
[377577053,1754445135837,-1961.23,0.00036712,14]
[377577054,1754445135851,-3219.58,0.00036712,14]
[377577055,1754445135861,-1517.52,0.00036712,14]
[377577056,1754445135871,-2216.79,0.00036712,14]
[377577057,1754445135881,-859.69,0.00036712,14]
[377577058,1754445135892,-400.0,0.00036712,14]
[377577059,1754445135903,-400.0,0.00036712,14]
[377577060,1754445135915,-517.11,0.00036712,14]
[377577061,1754445135927,-517.54,0.00036712,14]
[377577062,1754445135936,-551.25,0.00036712,14]
[377577063,1754445135946,-2826.95,0.00036712,14]
[377577064,1754445135955,-400.0,0.00036712,14]
[377577065,1754445135965,-424.14,0.00036712,14]
[377577066,1754445135975,-2395.65,0.00036712,14]
[377577067,1754445135985,-982.16,0.00036712,14]
[377577068,1754445135995,-852.19,0.00036712,14]
[377577069,1754445136005,-151.0,0.00036712,7]
[377577070,1754445136015,-2448.42,0.00036712,14]
[377577071,1754445136024,-1605.08,0.00036712,14]
[377577072,1754445136033,-151.0,0.00036712,7]
[377577073,1754445136043,-400.0,0.00036712,14]
[377577074,1754445136053,-1867.43,0.00036712,14]
[377577075,1754445136062,-1463.25,0.00036712,14]
[377577076,1754445136072,-1402.25,0.00036712,14]
[377577077,1754445136081,-214.33252804,0.00036712,7]
[377577078,1754445136091,-1962.72,0.00036712,14]
[377577079,1754445136101,-2516.23,0.00036712,14]
[377577080,1754445136110,-538.31,0.00036712,14]
[377577081,1754445136120,-528.34,0.00036712,14]
[377577082,1754445136129,-400.0,0.00036712,14]
[377577083,1754445136139,-1761.9,0.00036712,14]
[377577084,1754445136148,-152.0,0.00036712,7]
[377577085,1754445136158,-400.0,0.00036712,7]
[377577086,1754445136167,-933.27,0.00036712,14]
[377577087,1754445136177,-400.0,0.00036712,14]
[377577088,1754445136186,-1214.0,0.00036712,7]
[377577089,1754445136197,-400.0,0.00036712,14]
[377577090,1754445136208,-1214.0,0.00036712,7]
[377577091,1754445136219,-1388.31,0.00036712,14]
[377577092,1754445136231,-1214.0,0.00036712,7]
[377577093,1754445136240,-1291.42,0.00036712,14]
[377577094,1754445136250,-400.0,0.00036712,14]
[377577095,1754445136379,-1276.43,0.00036712,14]
[377577096,1754445136388,-1321.37,0.00036712,14]
[377577097,1754445136397,-1214.0,0.00036712,7]
[377577098,1754445136406,-3823.52,0.00036712,14]
[377577099,1754445136415,-586.88,0.00036712,14]
[377577100,1754445136424,-152.0,0.00036712,7]
[377577101,1754445136432,-1214.0,0.00036712,7]
[377577102,1754445136442,-400.0,0.00036712,14]
[377577103,1754445136451,-255.74007,0.00036712,7]
[377577104,1754445136460,-2008.43,0.00036712,14]
[377577105,1754445136469,-1214.0,0.00036712,7]
[377577106,1754445136478,-1214.0,0.00036712,7]
[377577107,1754445136487,-400.0,0.00036712,14]
[377577108,1754445136496,-434.35,0.00036712,14]
[377577109,1754445136505,-2944.88,0.00036712,14]
[377577110,1754445136514,-1621.1,0.00036712,14]
[377577111,1754445136524,-400.0,0.00036712,14]
[377577112,1754445136532,-1214.0,0.00036712,7]
[377577113,1754445136542,-2494.8,0.00036712,14]
[377577114,1754445136551,-692.12,0.00036712,14]
[377577115,1754445136560,-1582.0,0.00036712,14]
[377577116,1754445136570,-790.83,0.00036712,14]
[377577117,1754445136579,-1214.0,0.00036712,7]
[377577118,1754445136588,-400.0,0.00036712,14]
[377577119,1754445136598,-2061.99,0.00036712,14]
[377577120,1754445136607,-623.29,0.00036712,14]
[377577121,1754445136616,-1214.0,0.00036712,7]
[377577122,1754445136626,-2539.32,0.00036712,14]
[377577123,1754445136635,-2136.46,0.00036712,14]
[377577124,1754445136644,-606.74,0.00036712,14]
[377577125,1754445136653,-2048.1,0.00036712,14]
[377577126,1754445136661,-1804.32,0.00036712,14]
[377577127,1754445136670,-400.0,0.00036712,14]
[377577128,1754445136680,-265.83857141,0.00036712,14]
[377577129,1754445136689,-150.0,0.00036713,2]
[377577130,1754445136699,-150.0,0.00036735,2]
[377577131,1754445136708,-150.0,0.00036741,2]
[377577132,1754445136717,-150.0,0.00036753,2]
[377577133,1754445136727,-1000.0,0.00036757,7]
[377577134,1754445136735,-150.0,0.00036762,2]
[377577135,1754445136745,-1006.99308771,0.00036768,5]
[377577136,1754445136754,-1005.99316759,0.00036768,5]
[377577137,1754445136764,-1538.98759848,0.00036768,5]
[377577138,1754445136775,-253.60848392,0.00036768,5]
[377577139,1754445136792,-934.10211781,0.00036768,5]
[377577140,1754445136802,-1503.49548293,0.00036768,5]
[377577141,1754445136812,-502.63434504,0.00036768,5]
[377577142,1754445136822,-1500.0,0.00036768,5]
[377577143,1754445136832,-502.10540624,0.00036768,5]
[377577144,1754445136843,-150.0,0.0003678,2]
[377577145,1754445136854,-150.0,0.00036782,2]
[377577146,1754445136864,-150.0,0.00036784,2]
[377577147,1754445136873,-1000.0,0.00036795,7]
[377577148,1754445136883,-1000.0,0.00036821,7]
[377577149,1754445136892,-1000.0,0.0003684,7]
[377577150,1754445136901,-1000.0,0.0003684,7]
[377577151,1754445136910,-1000.0,0.00036857,7]
[377577152,1754445136919,-150.0,0.0003687,2]
[377577153,1754445136929,-1000.0,0.00036891,7]
[377577154,1754445136939,-1000.0,0.00036891,7]
[377577155,1754445136948,-150.0,0.00036893,2]
[377577156,1754445136958,-150.0,0.00036908,2]
[377577157,1754445136967,-1000.0,0.00036909,7]
[377577158,1754445136977,-150.0,0.00036911,2]
[377577159,1754445136987,-150.0,0.00036914,2]
[377577160,1754445136997,-150.0,0.00036916,2]
[377577161,1754445137006,-151.0,0.00036923,7]
[377577162,1754445137017,-150.0,0.00036924,2]
[377577163,1754445137026,-1000.0,0.00036929,7]
[377577164,1754445137036,-1000.0,0.0003694,2]
[377577165,1754445137045,-150.0,0.00036947,2]
[377577166,1754445137055,-150.0,0.0003696,2]
[377577167,1754445137064,-150.0,0.00036964,2]
[377577168,1754445137074,-150.0,0.00036965,2]
[377577169,1754445137084,-970.75,0.00036978,2]
[377577170,1754445137096,-151.0,0.00036986,7]
[377577171,1754445137108,-151.0,0.00036986,7]
[377577172,1754445137117,-151.0,0.00036986,7]
[377577173,1754445137130,-151.0,0.00036986,7]
[377577174,1754445137140,-151.0,0.00036986,7]
[377577175,1754445137149,-151.0,0.00036986,7]
[377577176,1754445137159,-400.0,0.00036986,14]
[377577177,1754445137168,-400.0,0.00036986,14]
[377577178,1754445137177,-350.0,0.00036986,14]
[377577179,1754445137186,-400.0,0.00036986,14]
[377577180,1754445137195,-255.49942551,0.00036986,14]
[377577181,1754445137204,-400.0,0.00036986,14]
[377577182,1754445137214,-400.0,0.00036986,14]
[377577183,1754445137224,-400.0,0.00036986,14]
[377577184,1754445137233,-400.0,0.00036986,14]
[377577185,1754445137242,-400.0,0.00036986,14]
[377577186,1754445137251,-179.78535754,0.00036986,2]
[377577187,1754445137261,-400.0,0.00036986,14]
[377577188,1754445137270,-400.0,0.00036986,14]
[377577189,1754445137279,-400.0,0.00036986,14]
[377577190,1754445137288,-428.777142,0.00036986,7]
[377577191,1754445137297,-400.0,0.00036986,14]
[377577192,1754445137307,-428.777142,0.00036986,7]
[377577193,1754445137316,-400.0,0.00036986,14]
[377577194,1754445137325,-1093.16,0.00036986,14]
[377577195,1754445137334,-800.2,0.00036986,14]
[377577196,1754445137343,-400.0,0.00036986,14]
[377577197,1754445137352,-549.39,0.00036986,14]
[377577198,1754445137361,-1040.46,0.00036986,14]
[377577199,1754445137370,-618.77,0.00036986,14]
[377577200,1754445137380,-400.0,0.00036986,14]
[377577201,1754445137389,-400.0,0.00036986,14]
[377577202,1754445137398,-1828.13,0.00036986,14]
[377577203,1754445137407,-463.3,0.00036986,14]
[377577204,1754445137416,-400.0,0.00036986,14]
[377577205,1754445137425,-400.0,0.00036986,14]
[377577206,1754445137434,-400.0,0.00036986,14]
[377577207,1754445137443,-2382.06,0.00036986,14]
[377577208,1754445137455,-400.0,0.00036986,14]
[377577209,1754445137465,-400.0,0.00036986,14]
[377577210,1754445137474,-400.0,0.00036986,14]
[377577211,1754445137483,-1551.34,0.00036986,14]
[377577212,1754445137492,-1555.79,0.00036986,14]
[377577213,1754445137501,-1562.0,0.00036986,14]
[377577214,1754445137510,-400.0,0.00036986,14]
[377577215,1754445137521,-1037.33,0.00036986,14]
[377577216,1754445137530,-281.6305026,0.00036986,5]
[377577217,1754445137539,-607.17,0.00036986,14]
[377577218,1754445137548,-400.0,0.00036986,14]
[377577219,1754445137557,-400.0,0.00036986,14]
[377577220,1754445137566,-400.0,0.00036986,14]
[377577221,1754445137575,-400.0,0.00036986,14]
[377577222,1754445137585,-444.81319926,0.00036986,14]
[377577223,1754445137594,-400.0,0.00036986,14]
[377577224,1754445137605,-538.42,0.00036986,14]
[377577225,1754445137614,-1423.6,0.00036986,14]
[377577226,1754445137623,-671.19,0.00036986,14]
[377577227,1754445137632,-400.0,0.00036986,14]
[377577228,1754445137642,-465.3,0.00036986,14]
[377577229,1754445137651,-400.0,0.00036986,14]
[377577230,1754445137660,-400.0,0.00036986,14]
[377577231,1754445137669,-400.0,0.00036986,14]
[377577232,1754445137678,-817.53,0.00036986,14]
[377577233,1754445137687,-400.0,0.00036986,14]
[377577234,1754445137697,-407.81,0.00036986,14]
[377577235,1754445137706,-400.0,0.00036986,14]
[377577236,1754445137715,-507.16,0.00036986,14]
[377577237,1754445137724,-400.0,0.00036986,14]
[377577238,1754445137734,-482.44,0.00036986,14]
[377577239,1754445137743,-400.0,0.00036986,14]
[377577240,1754445137751,-400.0,0.00036986,14]
[377577241,1754445137760,-556.12,0.00036986,14]
[377577242,1754445137769,-400.0,0.00036986,14]
[377577243,1754445137778,-554.87,0.00036986,14]
[377577244,1754445137787,-400.0,0.00036986,14]
[377577245,1754445137796,-400.0,0.00036986,14]
[377577246,1754445137805,-400.0,0.00036986,14]
[377577247,1754445137814,-400.0,0.00036986,14]
[377577248,1754445137823,-400.0,0.00036986,14]
[377577249,1754445137832,-400.0,0.00036986,14]
[377577250,1754445137842,-400.0,0.00036986,14]
[377577251,1754445137853,-1341.76,0.00036986,14]
[377577252,1754445137863,-776.19,0.00036986,14]
[377577253,1754445137873,-400.0,0.00036986,14]
[377577254,1754445137882,-470.14,0.00036986,14]
[377577255,1754445137891,-400.0,0.00036986,14]
[377577256,1754445137900,-400.0,0.00036986,14]
[377577257,1754445137910,-1323.57,0.00036986,14]
[377577258,1754445137921,-400.0,0.00036986,14]
[377577259,1754445137931,-400.0,0.00036986,14]
[377577260,1754445137940,-1141.48,0.00036986,14]
[377577261,1754445137950,-1119.61,0.00036986,14]
[377577262,1754445137959,-1503.27,0.00036986,14]
[377577263,1754445137968,-1078.09,0.00036986,14]
[377577264,1754445137977,-400.0,0.00036986,14]
[377577265,1754445137986,-400.0,0.00036986,14]
[377577266,1754445137995,-400.0,0.00036986,14]
[377577267,1754445138005,-400.0,0.00036986,14]
[377577268,1754445138014,-400.0,0.00036986,14]
[377577269,1754445138023,-400.0,0.00036986,14]
[377577270,1754445138034,-1713.36,0.00036986,14]
[377577271,1754445138044,-589.39,0.00036986,14]
[377577272,1754445138054,-904.53,0.00036986,14]
[377577273,1754445138064,-2898.63,0.00036986,14]
[377577274,1754445138073,-400.0,0.00036986,14]
[377577275,1754445138082,-400.0,0.00036986,14]
[377577276,1754445138092,-400.0,0.00036986,14]
[377577277,1754445138101,-400.0,0.00036986,14]
[377577278,1754445138111,-1559.97,0.00036986,14]
[377577279,1754445138120,-400.0,0.00036986,14]
[377577280,1754445138129,-1845.55,0.00036986,14]
[377577281,1754445138138,-400.0,0.00036986,14]
[377577282,1754445138147,-2002.24,0.00036986,14]
[377577283,1754445138157,-2734.57,0.00036986,14]
[377577284,1754445138166,-400.0,0.00036986,14]
[377577285,1754445138175,-424.18,0.00036986,14]
[377577286,1754445138185,-400.0,0.00036986,14]
[377577287,1754445138194,-400.0,0.00036986,14]
[377577288,1754445138203,-521.33,0.00036986,14]
[377577289,1754445138212,-837.62,0.00036986,14]
[377577290,1754445138221,-400.0,0.00036986,14]
[377577291,1754445138231,-710.32,0.00036986,14]
[377577292,1754445138240,-400.0,0.00036986,14]
[377577293,1754445138249,-1501.67,0.00036986,14]
[377577294,1754445138258,-400.0,0.00036986,14]
[377577295,1754445138268,-1946.53,0.00036986,14]
[377577296,1754445138277,-400.0,0.00036986,14]
[377577297,1754445138287,-917.13,0.00036986,14]
[377577298,1754445138297,-400.0,0.00036986,14]
[377577299,1754445138307,-400.0,0.00036986,14]
[377577300,1754445138316,-400.0,0.00036986,14]
[377577301,1754445138325,-2201.64,0.00036986,14]
[377577302,1754445138334,-400.0,0.00036986,14]
[377577303,1754445138345,-400.0,0.00036986,14]
[377577304,1754445138355,-789.36,0.00036986,14]
[377577305,1754445138363,-400.0,0.00036986,14]
[377577306,1754445138373,-400.0,0.00036986,14]
[377577307,1754445138382,-1035.11,0.00036986,14]
[377577308,1754445138391,-400.0,0.00036986,14]
[377577309,1754445138400,-400.0,0.00036986,14]
[377577310,1754445138409,-651.23,0.00036986,14]
[377577311,1754445138419,-2099.0,0.00036986,14]
[377577312,1754445138428,-400.0,0.00036986,14]
[377577313,1754445138437,-400.0,0.00036986,14]
[377577314,1754445138446,-592.11,0.00036986,14]
[377577315,1754445138460,-422.23,0.00036986,14]
[377577316,1754445138470,-400.0,0.00036986,14]
[377577317,1754445138479,-400.0,0.00036986,14]
[377577318,1754445138489,-400.0,0.00036986,14]
[377577319,1754445138499,-400.0,0.00036986,14]
[377577320,1754445138508,-1646.02,0.00036986,14]
[377577321,1754445138517,-1797.61,0.00036986,14]
[377577322,1754445138527,-1194.38,0.00036986,14]
[377577323,1754445138537,-400.0,0.00036986,14]
[377577324,1754445138546,-896.94,0.00036986,14]
[377577325,1754445138556,-1788.93,0.00036986,14]
[377577326,1754445138565,-400.0,0.00036986,14]
[377577327,1754445138574,-400.0,0.00036986,14]
[377577328,1754445138583,-400.0,0.00036986,14]
[377577329,1754445138593,-768.55,0.00036986,14]
[377577330,1754445138603,-701.55,0.00036986,14]
[377577331,1754445138613,-1062.63,0.00036986,14]
[377577332,1754445138623,-985.9,0.00036986,14]
[377577333,1754445138632,-947.7,0.00036986,14]
[377577334,1754445138641,-400.0,0.00036986,14]
[377577335,1754445138651,-1163.17,0.00036986,14]
[377577336,1754445138660,-1794.14,0.00036986,14]
[377577337,1754445138669,-739.15,0.00036986,14]
[377577338,1754445138679,-407.77840639,0.00036986,14]
[377577339,1754445138688,-1094.35,0.00036986,14]
[377577340,1754445138698,-1344.81,0.00036986,14]
[377577341,1754445138708,-400.0,0.00036986,14]
[377577342,1754445138718,-446.26,0.00036986,14]
[377577343,1754445138727,-405.78,0.00036986,14]
[377577344,1754445138737,-967.91,0.00036986,14]
[377577345,1754445138746,-1173.64,0.00036986,14]
[377577346,1754445138756,-2109.91,0.00036986,14]
[377577347,1754445138765,-2203.77,0.00036986,14]
[377577348,1754445138775,-811.64,0.00036986,14]
[377577349,1754445138785,-400.0,0.00036986,14]
[377577350,1754445138795,-400.0,0.00036986,14]
[377577351,1754445138805,-400.0,0.00036986,14]
[377577352,1754445138816,-400.0,0.00036986,14]
[377577353,1754445138825,-400.0,0.00036986,14]
[377577354,1754445138835,-162.38900075,0.00036986,14]
[377577355,1754445138849,-400.0,0.00036986,14]
[377577356,1754445138858,-400.0,0.00036986,14]
[377577357,1754445138868,-400.0,0.00036986,14]
[377577358,1754445138879,-400.0,0.00036986,14]
[377577359,1754445138889,-469.16,0.00036986,14]
[377577360,1754445138899,-923.75,0.00036986,14]
[377577361,1754445138908,-400.0,0.00036986,14]
[377577362,1754445138919,-400.0,0.00036986,14]
[377577363,1754445138929,-554.71,0.00036986,14]
[377577364,1754445138939,-604.15,0.00036986,14]
[377577365,1754445138948,-494.91,0.00036986,14]
[377577366,1754445138958,-400.0,0.00036986,14]
[377577367,1754445138967,-666.51,0.00036986,14]
[377577368,1754445138977,-400.0,0.00036986,14]
[377577369,1754445138987,-310.39907843,0.00036986,14]
[377577370,1754445138996,-400.0,0.00036986,14]
[377577371,1754445139007,-1810.36,0.00036986,14]
[377577372,1754445139017,-400.0,0.00036986,14]
[377577373,1754445139027,-937.59,0.00036986,14]
[377577374,1754445139036,-1765.04,0.00036986,14]
[377577375,1754445139045,-400.0,0.00036986,14]
[377577376,1754445139055,-662.56,0.00036986,14]
[377577377,1754445139066,-1884.93,0.00036986,14]
[377577378,1754445139075,-426.54,0.00036986,14]
[377577379,1754445139085,-2173.18,0.00036986,14]
[377577380,1754445139094,-400.0,0.00036986,14]
[377577381,1754445139106,-400.0,0.00036986,14]
[377577382,1754445139114,-1051.98,0.00036986,14]
[377577383,1754445139123,-638.49,0.00036986,14]
[377577384,1754445139133,-400.0,0.00036986,14]
[377577385,1754445139142,-400.0,0.00036986,7]
[377577386,1754445139152,-400.0,0.00036986,14]
[377577387,1754445139162,-400.0,0.00036986,14]
[377577388,1754445139171,-505.05,0.00036986,14]
[377577389,1754445139180,-823.45,0.00036986,14]
[377577390,1754445139189,-400.0,0.00036986,14]
[377577391,1754445139199,-885.84,0.00036986,14]
[377577392,1754445139209,-716.14,0.00036986,14]
[377577393,1754445139219,-1446.43,0.00036986,14]
[377577394,1754445139228,-1186.37,0.00036986,14]
[377577395,1754445139238,-992.97,0.00036986,14]
[377577396,1754445139247,-400.0,0.00036986,14]
[377577397,1754445139256,-1008.6,0.00036986,14]
[377577398,1754445139266,-400.0,0.00036986,14]
[377577399,1754445139276,-400.0,0.00036986,14]
[377577400,1754445139285,-1537.35,0.00036986,14]
[377577401,1754445139294,-594.52,0.00036986,14]
[377577402,1754445139303,-620.62,0.00036986,14]
[377577403,1754445139312,-400.0,0.00036986,14]
[377577404,1754445139322,-763.76,0.00036986,14]
[377577405,1754445139331,-2033.15,0.00036986,14]
[377577406,1754445139340,-400.0,0.00036986,14]
[377577407,1754445139349,-607.47,0.00036986,14]
[377577408,1754445139359,-400.0,0.00036986,14]
[377577409,1754445139367,-475.13,0.00036986,14]
[377577410,1754445139376,-1085.12,0.00036986,14]
[377577411,1754445139386,-1246.56,0.00036986,14]
[377577412,1754445139395,-515.75874409,0.00036986,14]
[377577413,1754445139404,-1188.02,0.00036986,14]
[377577414,1754445139414,-1141.08,0.00036986,14]
[377577415,1754445139423,-860.58,0.00036986,14]
[377577416,1754445139433,-2113.04,0.00036986,14]
[377577417,1754445139442,-1843.9,0.00036986,14]
[377577418,1754445139451,-400.0,0.00036986,14]
[377577419,1754445139460,-400.0,0.00036986,14]
[377577420,1754445139469,-909.95,0.00036986,14]
[377577421,1754445139478,-400.0,0.00036986,14]
[377577422,1754445139488,-400.0,0.00036986,14]
[377577423,1754445139497,-400.0,0.00036986,14]
[377577424,1754445139507,-3266.12,0.00036986,14]
[377577425,1754445139515,-1391.51,0.00036986,14]
[377577426,1754445139525,-719.58,0.00036986,14]
[377577427,1754445139534,-1913.41,0.00036986,14]
[377577428,1754445139543,-511.19,0.00036986,14]
[377577429,1754445139552,-400.0,0.00036986,14]
[377577430,1754445139562,-400.0,0.00036986,14]
[377577431,1754445139571,-400.0,0.00036986,14]
[377577432,1754445139580,-400.0,0.00036986,14]
[377577433,1754445139590,-503.5,0.00036986,14]
[377577434,1754445139599,-400.0,0.00036986,14]
[377577435,1754445139609,-3399.61,0.00036986,14]
[377577436,1754445139618,-185.54036748,0.00036986,14]
[377577437,1754445139627,-400.0,0.00036986,14]
[377577438,1754445139636,-1788.17,0.00036986,14]
[377577439,1754445139645,-488.85,0.00036986,14]
[377577440,1754445139655,-1956.52,0.00036986,14]
[377577441,1754445139664,-400.0,0.00036986,14]
[377577442,1754445139673,-1411.45,0.00036986,14]
[377577443,1754445139682,-400.0,0.00036986,14]
[377577444,1754445139691,-647.61,0.00036986,14]
[377577445,1754445139701,-400.0,0.00036986,14]
[377577446,1754445139710,-400.0,0.00036986,14]
[377577447,1754445139719,-400.0,0.00036986,14]
[377577448,1754445139728,-546.47,0.00036986,14]
[377577449,1754445139737,-690.81,0.00036986,14]
[377577450,1754445139747,-985.67,0.00036986,14]
[377577451,1754445139755,-1985.89,0.00036986,14]
[377577452,1754445139765,-2195.08,0.00036986,14]
[377577453,1754445139774,-959.45,0.00036986,14]
[377577454,1754445139783,-400.0,0.00036986,14]
[377577455,1754445139792,-672.57,0.00036986,14]
[377577456,1754445139802,-531.05,0.00036986,14]
[377577457,1754445139811,-400.0,0.00036986,14]
[377577458,1754445139822,-1247.88,0.00036986,14]
[377577459,1754445139830,-585.25,0.00036986,14]
[377577460,1754445139840,-400.0,0.00036986,14]
[377577461,1754445139853,-400.0,0.00036986,14]
[377577462,1754445139862,-2434.27,0.00036986,14]
[377577463,1754445139871,-400.0,0.00036986,14]
[377577464,1754445139880,-1651.3,0.00036986,14]
[377577465,1754445139890,-1867.25,0.00036986,14]
[377577466,1754445139899,-1041.88,0.00036986,14]
[377577467,1754445139908,-1301.09,0.00036986,14]
[377577468,1754445139919,-400.0,0.00036986,14]
[377577469,1754445139929,-400.0,0.00036986,14]
[377577470,1754445139938,-400.0,0.00036986,14]
[377577471,1754445139947,-404.9,0.00036986,14]
[377577472,1754445139956,-1903.84,0.00036986,14]
[377577473,1754445139966,-519.19,0.00036986,14]
[377577474,1754445139975,-500.64,0.00036986,14]
[377577475,1754445139984,-400.0,0.00036986,14]
[377577476,1754445139993,-511.74,0.00036986,14]
[377577477,1754445140003,-627.73,0.00036986,14]
[377577478,1754445140012,-400.0,0.00036986,14]
[377577479,1754445140021,-400.0,0.00036986,14]